Cogmind - Beta 10.2 @@@ ROGUE MODE // 2021.06.07 @ 17:14:37 Player: CrossedViper Result: Destroyed by H-88 Terminator with KE Penetrator Performance ------------- Evolutions (8) 4000 Regions Visited (27) 5400 Robots Destroyed (397) 1985 Value Destroyed (18995) 18995 Prototype IDs (46) 920 Alien Tech Used (4) 800 Bonus (9267) 9267 TOTAL SCORE: 41367 Bonus ------- High Alert Combat Kills 4123 Follower Combat Kills 1693 Network Hubs Disabled 400 Met Zhirov 300 Met Warlord at Base 500 MAIN.C Attacked Warlord 500 Warlord Defense Kill 300 A7 Reached Mainframe 300 Hacked Protovariant 500 Scanned by Researcher 1000 Pursued by Intercept 500 Friendly Fire -849 Cogmind --------- Core Integrity 0/1450 Matter 300/300 Energy 100/100 System Corruption 40% Temperature Cool (0) Movement Core (50) Location -2/Section 7 Parts ------- > --- POWER (2) -------- (None) > --- PROPULSION (6) --- (None) > --- UTILITY (11) ----- Makeshift Salvage Targeting Computer Improved Melee Analysis Suite Improved Armor Integrity Analyzer Improved Component Analysis Suite > --- WEAPON (4) ------- (None) > --- INVENTORY (4) ---- (None) Peak State ------------ > --- POWER ------------ Reinforced Fission Core Light Quantum Reactor > --- PROPULSION ------- Improved Heavy Siege Treads Improved Heavy Siege Treads Improved Heavy Siege Treads > --- UTILITY ---------- High-capacity Storage Unit High-capacity Storage Unit High-capacity Storage Unit Long-range Terrain Scanner Advanced Terrain Scan Processor Makeshift Salvage Targeting Computer Improved Armor Integrity Analyzer Improved Transmission Jammer Experimental Thermal Defense Suite Ghost Barrier Advanced Dynamic Insulation System > --- WEAPON ----------- Advanced Plasma Rifle Potential Cannon Multirail > --- INVENTORY -------- Heavy Treads Heavy Treads Improved Heavy Siege Treads Experimental Energy Well Matter Compressor Medium Reflective Plating Improved Energy Mantle Improved Hacking Suite Transdimensional Reconstructor Core Reset Matrix Subatomic Replicator Matter Drive Hypervelocity EM Gauss Rifle Gamma Rifle Advanced Plasma Rifle Improved Potential Cannon Heavy Gauss Cannon Heavy Shock Bomb Launcher Tesla Bomb Launcher Sigix Terminator Ionic Axe [Rating: 179] Favorites ----------- Power Reinforced Fission Core Engine Light Ion Engine Power Core Reinforced Fission Core Reactor Light Antimatter Reactor Propulsion Light Treads Treads Light Treads Leg Myomer Leg Wheel Wheel Flight Unit Cooled Nuclear Pulse Thruster Utility High-capacity Storage Unit Device Coolant Injector Storage High-capacity Storage Unit Processor Experimental Targeting Computer Hackware Hacking Suite Protection Hardened Medium Armor Plating Weapon Coil Gun Energy Gun Heavy Riot Gun Energy Cannon Potential Cannon Ballistic Gun Coil Gun Ballistic Cannon Gauss Cannon Launcher Grenade Launcher Slashing Weapon Ionic Axe Build | -11 -10 -10 -10 -9 -8 -8 -7 -6 -6 -6 -6 -6 -5 -5 -5 -5 -4 -4 -4 -4 -4 -3 -3 -3 -2 -2 -2 ------- Run | Scr Mat Min Exi Min Mat Sto Fac Fac Ext Cet Arc Hub Fac Upp Upp Zhi Pro Fac Upp Upp War Pro Res Qua Res Tes Sec Slots Evolved 16 | . . . . . 4 . 2 2 . . . . 2 . . . . 2 . . . . 2 . 2 . . Power 1 | . . . . . . . . . . . . . 1 . . . . . . . . . . . . . . Propulsion 4 | . . . . . . . 2 . . . . . . . . . . 2 . . . . . . . . . Utility 9 | . . . . . 3 . . 2 . . . . 1 . . . . . . . . . 2 . 1 . . Weapon 2 | . . . . . 1 . . . . . . . . . . . . . . . . . . . 1 . . Parts Attached 412 | 7 14 3 2 . 4 18 5 4 8 4 5 2 39 11 21 11 15 18 31 3 11 8 19 49 15 44 41 Power 36 | 1 1 1 . . . . . . 1 1 . . 4 . 4 1 2 2 3 . 1 1 2 3 1 1 6 Engine 10 | 1 1 . . . . . . . 1 . . . 2 . 3 . . . . . . . . . . . 2 Core 8 | . . 1 . . . . . . . . . . . . 1 . 2 2 . . 1 . 1 . . . . Reactor 18 | . . . . . . . . . . 1 . . 2 . . 1 . . 3 . . 1 1 3 1 1 4 Propulsion 96 | 3 3 . . . . 4 3 . 2 2 1 . 7 1 4 2 1 4 11 . 2 . 3 11 8 8 16 Treads 56 | 2 2 . . . . 4 3 . 2 2 1 . 7 1 4 1 1 2 . . . . 3 6 . 8 7 Leg 28 | . . . . . . . . . . . . . . . . . . . 11 . 2 . . 4 8 . 3 Wheel 11 | 1 1 . . . . . . . . . . . . . . . . 2 . . . . . 1 . . 6 Hover . | . . . . . . . . . . . . . . . . . . . . . . . . . . . . Flight 1 | . . . . . . . . . . . . . . . . 1 . . . . . . . . . . . Utility 118 | 1 2 1 2 . 2 3 1 2 3 . 3 . 12 6 5 6 4 6 6 3 6 6 8 8 1 11 10 Device 50 | . . . . . . . . 1 . . . . 2 3 1 2 1 2 6 3 4 4 2 5 . 7 7 Storage 12 | 1 2 1 2 . . . . . . . . . . . . 1 . . . . . 1 . . . 2 2 Processor 10 | . . . . . . 1 . . . . . . 1 1 1 . 1 1 . . . 1 . 1 1 . 1 Hackware 10 | . . . . . . 1 . . 2 . 2 . 1 . . . . 1 . . . . 2 . . 1 . Protection 36 | . . . . . 2 1 1 1 1 . 1 . 8 2 3 3 2 2 . . 2 . 4 2 . 1 . Artifact . | . . . . . . . . . . . . . . . . . . . . . . . . . . . . Weapon 162 | 2 8 1 . . 2 11 1 2 2 1 1 2 16 4 8 2 8 6 11 . 2 1 6 27 5 24 9 Energy Gun 48 | 1 3 . . . . . . . 1 . . . . . 2 2 4 . 1 . 2 . . 15 3 10 4 Energy Cannon 17 | . . . . . . . . . . . . 1 . . 1 . 1 . 4 . . . 1 1 . 7 1 Ballistic Gun 54 | 1 3 . . . . 1 . 2 1 1 1 1 11 3 4 . 3 6 6 . . 1 2 4 1 1 1 Ballistic Cannon 15 | . . . . . 2 6 1 . . . . . . . . . . . . . . . 1 4 . 1 . Launcher 21 | . 2 1 . . . 3 . . . . . . 3 1 1 . . . . . . . 1 2 1 4 2 Special Weapon . | . . . . . . . . . . . . . . . . . . . . . . . . . . . . Impact Weapon . | . . . . . . . . . . . . . . . . . . . . . . . . . . . . Slashing Weapon 7 | . . . . . . 1 . . . . . . 2 . . . . . . . . . 1 1 . 1 1 Piercing Weapon . | . . . . . . . . . . . . . . . . . . . . . . . . . . . . Special Melee Weapon . | . . . . . . . . . . . . . . . . . . . . . . . . . . . . Unidentified Prototypes 38 | . . . . . . 2 . . . 2 . 1 3 . . 4 1 . . . 3 1 2 6 1 9 3 Parts Lost 133 | . 5 . . . . . . . . . . . 13 2 13 . 5 6 7 . 1 1 4 14 5 22 35 Power 16 | . 1 . . . . . . . . . . . 2 1 1 . 2 . . . . . . 2 1 2 4 Propulsion 36 | . 2 . . . . . . . . . . . 2 . 5 . . 1 3 . . . 2 3 1 4 13 Utility 39 | . . . . . . . . . . . . . 6 . 3 . 2 3 2 . 1 1 . 1 . 10 10 Weapon 42 | . 2 . . . . . . . . . . . 3 1 4 . 1 2 2 . . . 2 8 3 6 8 Highest Loss Streak 21 | . 3 . . . . . . . . . . . 3 1 8 . 4 2 3 . 1 1 4 10 4 9 21 Average Slot Usage (%) 88 | . 98 100 100 100 89 98 99 100 99 94 93 93 86 84 82 72 82 82 88 100 100 94 86 81 86 75 69 Engine 1 | . 14 3 . . . . . . 1 1 . . 1 . 5 7 . . . . . . . . . . 2 Core 3 | . . 10 14 14 9 9 7 6 4 . . . . . . . 5 10 7 . 3 . 1 4 4 2 . Reactor 2 | . . . . . . . . . . 4 6 6 4 2 . 2 . . 2 10 6 5 4 3 4 4 4 Treads 14 | . 24 28 28 28 18 17 30 26 25 21 20 20 16 16 14 11 11 13 3 . . . 4 12 7 11 7 Leg 4 | . . . . . . . . . . . . . . . . . . . 15 31 31 31 19 2 8 1 . Device 7 | . . . . . . . . 6 6 6 6 6 5 6 8 11 10 9 10 15 12 9 8 9 13 12 12 Storage 13 | . 27 28 28 28 18 18 15 13 13 13 13 13 11 11 11 11 11 10 10 10 10 13 14 14 13 12 7 Processor 9 | . . . . . . 3 7 6 6 6 6 6 5 11 15 17 17 10 15 15 12 9 9 13 17 13 14 Hackware 3 | . . . . . . 8 7 6 12 13 13 13 5 . . . . 4 2 . . . 4 4 4 4 3 Protection 5 | . . . . . 18 14 6 13 6 6 6 6 13 15 5 4 5 4 . . 4 6 5 2 . . . Energy Gun 2 | . 12 . . . . . . . 1 . . . . . 4 3 9 1 . . 2 . . 5 8 4 2 Ballistic Gun 9 | . 11 14 14 14 1 . . 12 13 20 20 19 16 16 10 . 3 13 13 15 12 14 9 2 1 1 . Ballistic Cannon 2 | . . . . . 16 20 18 6 4 . . . . . . . . . . . . . 1 . 1 1 . Launcher 1 | . 4 14 14 14 9 4 4 . . . . . . . . . . . . . . . . . 2 1 . Naked Turns . | . . . . . . . . . . . . . . . . . . . . . . . . . . . . Heaviest Build 181 | 10 39 59 75 75 97 107 101 111 107 105 110 110 130 119 118 107 119 120 113 114 135 171 181 176 171 180 97 Greatest Support 225 | 40 40 40 40 40 40 40 80 80 80 130 130 130 140 140 140 140 140 163 145 135 145 145 175 210 210 225 141 Greatest Overweight (x) 14 | 1 3 1 1 1 2 2 1 1 1 1 . . 1 1 1 1 1 5 3 . . 1 2 14 5 3 3 Average Overweight (x) . | . . . 1 1 2 1 1 1 1 . . . . . . . . . 1 . . . . . . . . Largest Inventory Capacity 28 | 6 16 18 20 20 20 20 20 20 20 20 20 20 20 20 20 20 20 20 20 20 20 28 28 28 28 28 14 Average Capacity 20 | 5 15 16 19 20 20 20 20 20 20 20 20 20 20 20 20 20 20 20 20 20 20 25 28 28 28 27 8 Most Carried 28 | 4 16 16 18 18 20 20 20 18 20 20 20 20 20 20 20 20 20 20 20 20 20 21 25 28 25 28 12 Average Carried 18 | 1 8 15 16 18 18 19 18 16 19 19 19 19 18 19 16 19 19 18 18 20 19 20 21 23 21 23 4 Final Capacity 28 | 6 16 18 20 20 20 20 20 20 20 20 20 20 20 20 20 20 20 20 20 20 20 28 28 28 28 4 4 Final Carried 26 | 4 16 16 18 18 19 20 19 18 20 20 20 18 19 20 17 20 19 19 20 20 20 21 24 26 21 4 . Class Distribution -------------------- 19% | Scavenger-Gunner 18% | Hauler-Mutant 15% | Scavenger-Tank 12% | Scavenger-Mutant 12% | Scavenger-Skirmisher 9% | Mutant 3% | Hauler-Bomber Dominant Class ---------------- Mutant | -10/Materials Mutant | -10/Mines Hauler-Mutant | -10/Exiles Hauler-Mutant | -9/Mines Hauler-Mutant | -8/Materials Hauler-Mutant | -8/Storage Hauler-Mutant | -7/Factory Hauler-Bomber | -6/Factory Scavenger-Gunner | -6/Extension Scavenger-Gunner | -6/Cetus Scavenger-Gunner | -6/Archives Scavenger-Gunner | -6/Hub_04(d) Scavenger-Tank | -5/Factory Scavenger-Tank | -5/Upper Caves Scavenger-Skirmisher | -5/Upper Caves Hauler-Mutant | -5/Zhirov Hauler-Mutant | -4/Proximity Caves Scavenger-Skirmisher | -4/Factory Scavenger-Gunner | -4/Upper Caves Scavenger-Skirmisher | -4/Upper Caves Scavenger-Skirmisher | -4/Warlord Scavenger-Tank | -3/Proximity Caves Scavenger-Tank | -3/Research Scavenger-Mutant | -3/Quarantine Scavenger-Mutant | -2/Research Hauler-Mutant | -2/Testing Scavenger-Mutant | -2/Section 7 Resources | -11 -10 -10 -10 -9 -8 -8 -7 -6 -6 -6 -6 -6 -5 -5 -5 -5 -4 -4 -4 -4 -4 -3 -3 -3 -2 -2 -2 ----------- Run | Scr Mat Min Exi Min Mat Sto Fac Fac Ext Cet Arc Hub Fac Upp Upp Zhi Pro Fac Upp Upp War Pro Res Qua Res Tes Sec Matter Collected 11494 | 254 253 70 20 . 71 598 94 . 620 223 218 511 1542 596 699 92 288 611 576 12 70 435 869 1501 219 527 525 Remotely 146 | . . . . . . . . . . . . . . . . . . . . . . . . . . . 146 Salvage Created 22291 | . 745 30 . . 101 441 162 . 1023 136 259 1091 3059 322 620 245 558 1147 1020 . 120 495 1046 3579 1339 2800 1953 Parts 1086 | . 52 2 . . 4 37 4 . 28 9 20 43 159 26 16 10 27 56 49 . 9 38 64 215 44 110 64 Haulers Intercepted 14 | . 2 . . . 1 2 . . . . . 1 4 . . . . 2 . . . . . . . 1 1 Recyclers Shooed 13 | . 1 . . . . . . . . . . 1 5 . . . . 1 . . . . 3 1 1 . . Parts Field Recycled . | . . . . . . . . . . . . . . . . . . . . . . . . . . . . Retrieved Matter . | . . . . . . . . . . . . . . . . . . . . . . . . . . . . Parts Self-Destructed 145 | . . . . . . . . . . . . . . 24 8 1 16 . 41 . 20 35 . . . . . Prevented 53 | . . . . . . . . . . . . . . . 3 7 8 . 24 . 10 1 . . . . . Kills | -11 -10 -10 -10 -9 -8 -8 -7 -6 -6 -6 -6 -6 -5 -5 -5 -5 -4 -4 -4 -4 -4 -3 -3 -3 -2 -2 -2 ------- Run | Scr Mat Min Exi Min Mat Sto Fac Fac Ext Cet Arc Hub Fac Upp Upp Zhi Pro Fac Upp Upp War Pro Res Qua Res Tes Sec Combat Hostiles Destroyed 296 | . 19 2 . . 2 14 4 . 11 1 2 9 46 14 11 . 10 12 17 . 2 6 9 41 14 36 14 Melee 5 | . . . . . . . . . . . . . . . . . . . . . . . . 2 . . 3 Guns 151 | . 10 . . . . . . . 9 1 2 9 34 10 6 . 7 12 12 . 2 6 4 20 2 4 1 Cannons 29 | . . . . . 2 6 2 . 2 . . . . . . . . . 2 . . . 5 2 . 5 3 AOE 66 | . 8 2 . . . 8 2 . . . . . 12 4 4 . 2 . . . . . . 3 3 17 1 Classes Destroyed 20 | . 6 . . . 1 4 2 . . . . . 2 . 1 . . . . . . . 1 3 . . . Worker 32 | . . . . . . 2 . . . . . 6 11 . . . . 1 . . . . 1 1 2 3 5 Builder 17 | . 1 . . . . 2 . . . . . 2 4 . . . . . . . . . 2 3 . 3 . Tunneler 2 | . . . . . . . . . . . . . . . . . . . . . . . 2 . . . . Hauler 14 | . 2 . . . 1 2 . . . . . 1 4 . . . . 2 . . . . . . . 1 1 Recycler 14 | . . . . . . . 1 . 3 . . 2 3 . . . . 1 . . . . 2 . . . 2 Mechanic 2 | . . . . . . . . . . . . . 1 . . . . . . . . . . . . . 1 Operator 9 | . 2 . . . . . . . 2 . 4 . . . . . . . . . . . . . . . 1 Watcher 6 | . 1 . . . . 1 . . 1 . . . 1 . . . . . . . . . 1 1 . . . Swarmer 62 | . 6 . . . . 4 . . . . . . 15 13 3 . 5 . 8 . . . 5 . . 3 . Grunt 111 | . 13 2 . . . 4 2 . 8 . . 6 11 . 4 . 3 . 2 . . 4 . 19 9 20 4 Brawler 10 | . . . . . . 1 . . . . . . 1 . 1 . 1 . . . . . . . 1 2 3 Duelist 9 | . . . . . . 1 1 . . . . . 2 . . . . . . . . . . 3 1 . 1 Protector 1 | . . . . . . . . . . . . . . . . . . . . . . . . 1 . . . Researcher 4 | . . . . . . . . . . . . . . . . . . . . . . . . 2 . 1 1 Sentry 22 | . . . . . 2 3 . . 1 . 2 1 2 1 1 . 1 1 3 . . . 3 . . . 1 Hunter 41 | . . . . . . 1 . . 2 . . 2 7 . 2 . . 6 4 . . . . 10 2 2 3 Programmer 35 | . . . . . . . 1 . . . . . 7 . . . . 5 . . 2 2 . 7 1 9 1 Behemoth 2 | . . . . . . . . . . . . . 1 . . . . . . . . . 1 . . . . Cetus Guard 1 | . . . . . . . . . . 1 . . . . . . . . . . . . . . . . . S7 Guard 1 | . . . . . . . . . . . . . . . . . . . . . . . . . . . 1 Alpha 7 1 | . . . . . . . . . . . . . . . . . . . . . . . . 1 . . . Decomposer 1 | . . . . . . . . . . . . . . . . . . . 1 . . . . . . . . Samaritan 2 | . . . . . . . . . . . . . . . 2 . . . . . . . . . . . . Guerrilla 1 | . . . . . . . . . . 1 . . . . . . . . . . . . . . . . . Best Kill Streak 18 | . 5 2 . . 2 7 4 . 7 1 3 11 10 4 6 . 5 3 5 . 1 4 11 8 12 18 10 Combat Bots Only 17 | . 5 2 . . 2 5 3 . 4 1 2 4 7 4 6 . 5 3 5 . 1 4 3 7 10 17 8 Max Kills in Single Turn 6 | . 3 2 . . 1 2 3 . 2 1 1 6 3 2 2 . 3 1 2 . 1 2 2 2 2 4 2 Gunslinging 1 | . . . . . . . . . . . . 1 1 1 . . 1 . . . . 1 . 1 . . . Exploded 3 | . 3 2 . . . 2 2 . . . . . 3 2 2 . 2 . . . . . . 2 1 3 1 Melee 1 | . . . . . . . . . . . . . . . . . . . . . . . . 1 . . 1 Uniques/NPCs Destroyed . | . . . . . . . . . . . . . . . . . . . . . . . . . . . . Combat | -11 -10 -10 -10 -9 -8 -8 -7 -6 -6 -6 -6 -6 -5 -5 -5 -5 -4 -4 -4 -4 -4 -3 -3 -3 -2 -2 -2 -------- Run | Scr Mat Min Exi Min Mat Sto Fac Fac Ext Cet Arc Hub Fac Upp Upp Zhi Pro Fac Upp Upp War Pro Res Qua Res Tes Sec Damage Taken 37155 | . 800 72 . . 109 741 181 82 941 45 61 709 3641 623 1353 56 987 1808 1359 . 501 552 1642 6635 922 6936 6399 Core 3914 | . 97 18 . . . 118 18 45 84 . . 77 200 28 87 . 65 78 116 . 43 14 70 641 45 660 1410 Absorbed by Shields 1902 | . . . . . . . . . 25 . . . . . . . . . . . 163 277 605 . . . 832 Reduced by Siege Mode 1483 | . . . . . . . . . . . . . . . 88 . 38 135 34 . . . . 113 . 834 241 Core Remaining (%) 73 | 100 . . . 54 . 78 97 . . . . 75 . . . . 62 . . . . 78 . 45 . . . Volleys Fired 845 | . 90 3 . . 8 29 10 2 32 10 13 20 120 21 36 20 26 40 44 . 11 17 41 120 19 75 38 Largest 4 | . 2 1 . . 2 3 3 3 3 3 3 3 3 3 3 2 3 3 3 . 3 3 3 3 3 4 3 Hottest 326 | . 80 30 . . 96 132 140 106 139 88 100 100 100 86 150 125 189 123 158 . 240 93 198 225 225 326 226 Shots Fired 1835 | . 159 3 . . 16 53 19 6 95 28 40 59 320 46 85 23 53 119 101 1 24 49 112 237 29 105 53 Gun 1498 | . 153 . . . . . . 4 73 28 40 59 307 43 71 23 40 119 79 1 24 49 88 195 18 55 29 Cannon 247 | . . . . . 16 43 15 2 22 . . . . . 10 . 13 . 22 . . . 24 32 . 29 19 Launcher 90 | . 6 3 . . . 10 4 . . . . . 13 3 4 . . . . . . . . 10 11 21 5 Special . | . . . . . . . . . . . . . . . . . . . . . . . . . . . . Kinetic 1288 | . 83 . . . 16 43 15 6 86 28 40 59 307 43 58 . 11 112 69 1 20 49 108 111 2 14 7 Thermal 233 | . 61 . . . . . . . 9 . . . . . 10 . 18 . 13 . 4 . 4 15 . 58 41 Explosive 43 | . 6 3 . . . 10 4 . . . . . 13 3 4 . . . . . . . . . . . . Electromagnetic 270 | . 9 . . . . . . . . . . . . . 13 23 24 7 19 . . . . 111 27 32 5 Robot Hit Streak 45 | . 16 5 . . 6 11 10 9 24 28 22 20 32 10 17 21 45 18 17 18 20 19 9 34 9 16 13 Robot Miss Streak 7 | . 4 . . . 2 4 2 2 2 1 2 2 3 2 2 1 2 2 2 . 1 3 7 2 3 3 2 Penetration Max 2 | . . . . . . . . . 2 1 1 1 1 1 . . . 1 1 . . 1 2 1 1 2 1 Secondary Targets 33 | . 1 . . . . . . . . . . 1 8 2 1 . 4 2 3 . 1 3 1 5 . . 1 Max Gunslinging Chain 2 | . 1 . . . . . . . . . . 1 1 2 1 . 1 1 1 . 1 1 1 1 . . 1 Shots Hit Robots 1368 | . 100 1 . . 7 41 15 3 71 26 28 39 232 31 73 21 33 97 68 1 21 31 63 194 22 75 75 Core Hits 867 | . 45 3 . . 3 67 16 . 40 13 17 36 139 18 36 12 24 43 28 1 6 16 33 109 23 88 51 Critical Hits 77 | . . . . . 2 2 . . 9 1 4 11 14 1 1 1 3 3 1 . . 1 6 6 1 8 2 Critical Kills 34 | . . . . . 1 1 . . 2 1 3 5 10 . . 1 2 2 1 . . . 1 3 1 . . Critical Parts Destroyed 37 | . . . . . 1 1 . . 5 . 1 6 4 1 . . 1 1 . . . 1 3 3 . 8 1 Melee Attacks 74 | . . . . . . 2 . . . . . . 3 . . . . . . . . . 1 17 . 2 49 Impact . | . . . . . . . . . . . . . . . . . . . . . . . . . . . . Slashing 74 | . . . . . . 2 . . . . . . 3 . . . . . . . . . 1 17 . 2 49 Piercing . | . . . . . . . . . . . . . . . . . . . . . . . . . . . . Sneak Attacks 8 | . . . . . . . . . . . . . . . . . . . . . . . . . . . 8 Combat Hostiles . | . . . . . . . . . . . . . . . . . . . . . . . . . . . . Follow-up Attacks . | . . . . . . . . . . . . . . . . . . . . . . . . . . . . Damage Inflicted 54231 | . 1541 205 . . 211 1893 582 73 2112 633 768 2031 7847 885 1909 351 877 2356 1689 47 723 889 2512 7343 2089 9670 4995 Guns 27398 | . 1050 . . . . . . 48 1659 633 768 1232 5767 588 988 190 585 2153 1235 47 691 889 1629 4591 551 1630 474 Cannons 6487 | . . . . . 207 700 206 25 451 . . . . . 326 . . . 454 . . . 811 772 . 1965 570 Explosions 16734 | . 474 198 . . . 1155 376 . . . . 787 1999 297 595 161 292 203 . . . . . 1209 1484 6075 1429 Melee 3256 | . . . . . . 28 . . . . . . . . . . . . . . . . . 748 . . 2480 Ramming 356 | . 17 7 . . 4 10 . . 2 . . 12 81 . . . . . . . 32 . 72 23 54 . 42 Kinetic 24011 | . 435 . . . 207 700 206 73 1914 633 768 1232 5767 588 777 . 101 2015 1025 47 565 889 2337 2885 88 645 114 Thermal 9664 | . 542 . . . . . . . 196 . . . . . 410 161 387 203 134 . 126 . 103 137 19 6174 1072 Explosive 5487 | . 451 198 . . . 1155 376 . . . . . 1999 297 511 . . . . . . . . . . 500 . Electromagnetic 11457 | . 96 . . . . . . . . . . 787 . . 211 190 389 138 530 . . . . 3550 1928 2351 1287 Impact . | . . . . . . . . . . . . . . . . . . . . . . . . . . . . Slashing 3256 | . . . . . . 28 . . . . . . . . . . . . . . . . . 748 . . 2480 Piercing . | . . . . . . . . . . . . . . . . . . . . . . . . . . . . Highest Corruption 40 | . . . . . . . 1 3 5 5 5 5 13 13 13 13 13 5 5 5 5 4 6 18 1 26 40 Average Corruption 9 | . . . . . . . 1 2 3 5 5 5 8 13 13 13 13 3 5 5 4 4 5 12 1 6 29 Corruption Purged . | . . . . . . . . . . . . . . . . . . . . . . . . . . . . Effects 579 | . . . . . . . 2 2 24 10 6 8 70 43 66 24 37 13 29 8 3 14 11 100 . 37 72 Message Errors 87 | . . . . . . . 1 1 6 2 1 . 7 9 7 3 8 2 6 . 1 3 5 11 . 9 5 Matter Fused 89 | . . . . . . . . . 9 2 . 1 10 7 10 3 9 3 2 3 1 2 2 13 . 4 8 Heat Flow Errors 39 | . . . . . . . . . 3 1 . 1 2 . 7 2 1 1 1 1 . 1 . 9 . 6 3 Energy Discharges 38 | . . . . . . . . . . 1 . 1 7 3 4 3 5 . . . . 2 . 5 . 2 5 Parts Rejected 8 | . . . . . . . . . . . . . 1 2 . . . . 1 . 1 . . 2 . 1 . Data Loss (minor) 62 | . . . . . . . 1 1 2 . 1 . 6 6 11 3 2 3 6 2 . 4 . 7 . 2 5 Data Loss (major) 14 | . . . . . . . . . . . . 1 1 1 2 . 1 1 . 1 . . 2 3 . . 1 Misfires 18 | . . . . . . . . . . . 1 . 2 2 2 . 1 . 2 1 . . 1 3 . 1 2 Alerts 6 | . . . . . . . . . . . . . . . . . 2 . . . . . . 4 . . . Misdirections 36 | . . . . . . . . . . . . . 2 4 6 3 3 . . . . . . 9 . 2 7 Targeting Errors 154 | . . . . . . . . . 4 4 3 3 27 6 14 6 5 3 9 . . 2 . 28 . 7 33 Weapon Failures 28 | . . . . . . . . . . . . 1 5 3 3 1 . . 2 . . . 1 6 . 3 3 Overload Shots 1 | . . . . . . . . . . . . . . . . . . . . . 1 . . . . . . Overflow Damage 2470 | . 37 . . . . 51 . 3 18 . . 16 158 33 24 44 . . 31 . . . 130 124 . 1433 368 Projectiles 611 | . . . . . . . . 3 18 . . . . . 11 . . . 31 . . . 110 81 . 343 14 Explosions 1488 | . 37 . . . . 51 . . . . . 16 158 33 13 44 . . . . . . . 32 . 1090 14 Melee 371 | . . . . . . . . . . . . . . . . . . . . . . . 20 11 . . 340 Knockbacks 26 | . . . . . . 2 5 1 5 . . . . . . . . . . . . . 2 8 . 2 1 Impact 2 | . . . . . . . . . . . . . . . . . . . . . . . . 1 . . 1 Kinetic 22 | . . . . . . 2 5 1 5 . . . . . . . . . . . . . 2 6 . 1 . Secondary 2 | . . . . . . . . . . . . . . . . . . . . . . . . 1 . 1 . Self-Inflicted Damage 1364 | . 58 35 . . . 83 9 . . . . 95 32 20 72 56 9 . . . . . . 440 47 208 200 Shots 40 | . 2 2 . . . 3 1 . . . . 1 1 2 4 1 1 . . . . . . 7 2 8 5 Rammed 27 | . 4 1 . . 1 2 . . 1 . . 1 4 . . . . . . . . . 1 3 . . 9 Targets Rammed 37 | . 4 1 . . 1 2 . . 1 . . 1 4 . . . . . . . 3 . 3 4 4 . 9 Kicked 10 | . . . . . . . . . . . . . . . . . . . . . 3 . 2 1 4 . . Crushed . | . . . . . . . . . . . . . . . . . . . . . . . . . . . . Highest Temperature 368 | . 321 1 . . 195 256 194 . 237 237 . 205 247 120 196 192 210 139 167 163 152 255 296 173 . 368 121 Average Temperature 85 | . 90 1 . . 72 80 76 . 89 137 . 109 110 59 95 85 64 15 40 92 49 56 186 73 . 113 56 Received Heat Transfer 3307 | . 378 21 . . 9 270 45 18 219 6 . 150 318 36 198 . 159 18 159 . 55 129 56 288 126 594 55 Effects 3 | . 1 . . . . . . . . . . . . . . . . . . . . . 1 . . 1 . Energy Bleed 1 | . . . . . . . . . . . . . . . . . . . . . . . 1 . . . . Interference 1 | . . . . . . . . . . . . . . . . . . . . . . . . . . 1 . Short Circuit 1 | . 1 . . . . . . . . . . . . . . . . . . . . . . . . . . Siege Activations 20 | . . . . . . . . . . . . . 1 . 2 . 2 4 2 . . . . 3 . 4 2 Total Turns 507 | . . . . . . . . . . . . . 22 . 45 . 31 102 42 . . . . 78 . 125 62 Longest Duration 66 | . . . . . . . . . . . . . 22 . 26 . 18 47 29 . . . . 41 . 66 39 Robots Corrupted 43 | . . . . . . . . . . . . . . . 1 . 1 . 3 . . . . 14 9 9 6 Combat Hostiles 43 | . . . . . . . . . . . . . . . 1 . 1 . 3 . . . . 14 9 9 6 Parts Fried 118 | . 1 . . . . . . . . . . 8 . . 5 1 2 . 9 . . . . 45 23 15 9 Impact Corruptions 1 | . . . . . . . . . . . . . . . . . . . . . . . 1 . . . . Robots Melted 2 | . 1 . . . . . . . . . . . . . . . . . . . . . . . . 1 . Combat Hostiles 2 | . 1 . . . . . . . . . . . . . . . . . . . . . . . . 1 . Parts Melted 28 | . 4 . . . . . . . . . . . . . 1 . . . 2 . 1 . . . . 9 11 Heat Transferred 10046 | . 1225 . . . . . . . 296 . . . . . 600 200 385 150 148 . 111 . 111 148 50 5178 1444 Parts Sabotaged . | . . . . . . . . . . . . . . . . . . . . . . . . . . . . Parts Stolen . | . . . . . . . . . . . . . . . . . . . . . . . . . . . . Parts Stripped . | . . . . . . . . . . . . . . . . . . . . . . . . . . . . Power Chain Reactions 12 | . 1 . . . . . . . . . . . . . 1 1 2 1 . . . . . . 2 3 1 Missiles Intercepted . | . . . . . . . . . . . . . . . . . . . . . . . . . . . . Alert | -11 -10 -10 -10 -9 -8 -8 -7 -6 -6 -6 -6 -6 -5 -5 -5 -5 -4 -4 -4 -4 -4 -3 -3 -3 -2 -2 -2 ------- Run | Scr Mat Min Exi Min Mat Sto Fac Fac Ext Cet Arc Hub Fac Upp Upp Zhi Pro Fac Upp Upp War Pro Res Qua Res Tes Sec Peak Influence 1499 | . 287 161 . . 107 845 362 240 131 373 308 1160 1499 . . . . 227 . . . . 347 932 672 1041 849 Initial 568 | . . 111 . . . 44 212 177 19 22 149 107 568 . . . . . . . . . . 141 477 372 552 Average 369 | . 157 160 . . 41 336 288 173 46 126 267 289 1028 . . . . 100 . . . . 176 462 508 562 674 Maximum Alert Level 4 | . 1 . . . . 3 1 1 . 1 1 4 4 . . . . 1 . . . . 1 3 2 3 3 Low Security (%) 44 | 100 76 100 . 100 100 29 3 62 100 79 12 53 . . . . . 96 . . . . 66 7 . . . Level 1 22 | . 23 . . . . 44 96 37 . 20 87 19 . . . . . 3 . . . . 33 40 12 41 . Level 2 14 | . . . . . . 9 . . . . . 22 8 . . . . . . . . . . 34 87 29 72 Level 3 14 | . . . . . . 16 . . . . . 1 55 . . . . . . . . . . 17 . 28 27 Level 4 4 | . . . . . . . . . . . . 3 36 . . . . . . . . . . . . . . Level 5 . | . . . . . . . . . . . . . . . . . . . . . . . . . . . . High Security . | . . . . . . . . . . . . . . . . . . . . . . . . . . . . Max Security . | . . . . . . . . . . . . . . . . . . . . . . . . . . . . Squads Dispatched 79 | . 6 1 . . . 5 5 . 1 . . 2 13 . . . . 3 . . . . 2 11 2 19 9 Investigation 9 | . 3 1 . . . 1 1 . . . . . . . . . . 1 . . . . . 1 . 1 . Extermination 14 | . . . . . . . 1 . . . . . 2 . . . . 2 . . . . 1 3 . 4 1 Reinforcement 35 | . 3 . . . . 2 . . 1 . . 2 8 . . . . . . . . . 1 6 2 8 2 Assault 11 | . . . . . . 2 . . . . . . 2 . . . . . . . . . . 1 . 3 3 Garrison 7 | . . . . . . . 3 . . . . . 1 . . . . . . . . . . . . 3 . Intercept 3 | . . . . . . . . . . . . . . . . . . . . . . . . . . . 3 Construction Impeded 9 | . . . . . . 2 . . . . . . 3 . . . . . . . . . 1 1 . 2 . Haulers Reinforced 9 | . . . . . . . . . . . . 2 2 . . . . . . . . . . 1 2 2 . Stealth | -11 -10 -10 -10 -9 -8 -8 -7 -6 -6 -6 -6 -6 -5 -5 -5 -5 -4 -4 -4 -4 -4 -3 -3 -3 -2 -2 -2 --------- Run | Scr Mat Min Exi Min Mat Sto Fac Fac Ext Cet Arc Hub Fac Upp Upp Zhi Pro Fac Upp Upp War Pro Res Qua Res Tes Sec Distress Signals 17 | . 2 . . . 2 1 . . 3 1 . . 3 . . . . . . . . . 1 . 3 . 1 Communications Jammed 4 | . . . . . . . . . . . . . 4 . . . . . . . . . . . . . . Distress Signals 4 | . . . . . . . . . . . . . 4 . . . . . . . . . . . . . . Times Spotted 500 | . 30 2 . . 7 36 8 3 30 10 11 14 68 18 13 . 10 15 28 . 14 7 13 53 17 46 47 Peak Tracking Total 14 | . 3 2 . . 4 11 4 1 6 5 2 5 7 6 8 . 5 3 12 . 14 5 7 5 6 13 10 Tactical Retreats 18 | . 2 . . . . 1 . . . . . 1 2 2 1 . . . 3 . . 1 3 1 . 1 . Traps | -11 -10 -10 -10 -9 -8 -8 -7 -6 -6 -6 -6 -6 -5 -5 -5 -5 -4 -4 -4 -4 -4 -3 -3 -3 -2 -2 -2 ------- Run | Scr Mat Min Exi Min Mat Sto Fac Fac Ext Cet Arc Hub Fac Upp Upp Zhi Pro Fac Upp Upp War Pro Res Qua Res Tes Sec Traps Triggered 18 | . 1 . . . . 2 . 3 6 . . 2 3 . . . . . . . . . . 1 . . . Indirectly 2 | . . . . . . . . . . . . 2 . . . . . . . . . . . . . . . Trap Hack Attempts . | . . . . . . . . . . . . . . . . . . . . . . . . . . . . Triggered . | . . . . . . . . . . . . . . . . . . . . . . . . . . . . Disarmed 4 | . . . . . . 4 . . . . . . . . . . . . . . . . . . . . . Reprogrammed . | . . . . . . . . . . . . . . . . . . . . . . . . . . . . Reused . | . . . . . . . . . . . . . . . . . . . . . . . . . . . . Traps Extracted . | . . . . . . . . . . . . . . . . . . . . . . . . . . . . Installed . | . . . . . . . . . . . . . . . . . . . . . . . . . . . . Triggered 17 | . . . . . . . . . . . . . . . . . . . 1 . 15 1 . . . . . Machines | -11 -10 -10 -10 -9 -8 -8 -7 -6 -6 -6 -6 -6 -5 -5 -5 -5 -4 -4 -4 -4 -4 -3 -3 -3 -2 -2 -2 ---------- Run | Scr Mat Min Exi Min Mat Sto Fac Fac Ext Cet Arc Hub Fac Upp Upp Zhi Pro Fac Upp Upp War Pro Res Qua Res Tes Sec Machines Disabled 69 | . 1 . . . . 6 . . . 2 4 21 12 . . 2 . 2 2 . 1 . . 8 . 6 2 Max in Single Turn 16 | . 1 . . . . 1 . . . . 1 16 3 . . 2 . 1 1 . 1 . . 2 . 1 1 Garrison Access 3 | . . . . . . . . 1 . . . . 1 . . . . . . . . . . . . 1 . Network Hub 2 | . . . . . . . . . . . . 2 . . . . . . . . . . . . . . . Machines Sabotaged . | . . . . . . . . . . . . . . . . . . . . . . . . . . . . Garrisons Compromised . | . . . . . . . . . . . . . . . . . . . . . . . . . . . . Overloaded Fab Kills . | . . . . . . . . . . . . . . . . . . . . . . . . . . . . Fab Network Shutdowns . | . . . . . . . . . . . . . . . . . . . . . . . . . . . . Hacking | -11 -10 -10 -10 -9 -8 -8 -7 -6 -6 -6 -6 -6 -5 -5 -5 -5 -4 -4 -4 -4 -4 -3 -3 -3 -2 -2 -2 --------- Run | Scr Mat Min Exi Min Mat Sto Fac Fac Ext Cet Arc Hub Fac Upp Upp Zhi Pro Fac Upp Upp War Pro Res Qua Res Tes Sec Machines Accessed 69 | . 5 1 1 . 1 9 1 3 12 3 . 1 4 . 3 4 . 2 3 . 4 . 3 5 1 3 . Terminals 44 | . 3 . . . 1 9 . 2 11 3 . 1 3 . . . . 1 1 . . . 3 3 1 2 . Fabricators . | . . . . . . . . . . . . . . . . . . . . . . . . . . . . Repair Stations 2 | . . . . . . . . . . . . . . . . . . 1 . . . . . 1 . . . Recycling Units 3 | . 2 . . . . . . . 1 . . . . . . . . . . . . . . . . . . Scanalyzers 1 | . . . . . . . . . . . . . . . . . . . . . . . . 1 . . . Garrison Access 4 | . . . . . . . 1 1 . . . . 1 . . . . . . . . . . . . 1 . Total Hacks 259 | . 13 1 1 . 3 26 2 8 23 6 . 3 16 . 5 17 . 14 17 . 8 . 24 32 11 29 . Successful 151 | . 7 1 1 . 2 15 . 4 15 4 . 2 8 . 5 17 . 9 17 . 8 . 9 15 2 10 . Failed 108 | . 6 . . . 1 11 2 4 8 2 . 1 8 . . . . 5 . . . . 15 17 9 19 . Catastrophic 22 | . . . . . . 1 1 1 . . . . 1 . . . . . . . . . 5 2 4 7 . Database Lockouts . | . . . . . . . . . . . . . . . . . . . . . . . . . . . . Manual 86 | . 8 . . . 1 8 2 6 11 1 . 1 8 . . . . 5 . . . . 13 11 . 11 . Terminals 181 | . 10 . . . 3 26 . 6 22 6 . 3 14 . . . . 8 7 . . . 24 16 11 25 . Fabricators . | . . . . . . . . . . . . . . . . . . . . . . . . . . . . Repair Stations 11 | . . . . . . . . . . . . . . . . . . 6 . . . . . 5 . . . Recycling Units 4 | . 3 . . . . . . . 1 . . . . . . . . . . . . . . . . . . Scanalyzers 11 | . . . . . . . . . . . . . . . . . . . . . . . . 11 . . . Garrison Access 10 | . . . . . . . 2 2 . . . . 2 . . . . . . . . . . . . 4 . Terminal Hacks 111 | . 5 1 1 . 2 12 . . 11 4 . 2 5 . 5 17 . 4 17 . 8 . 6 2 2 7 . Record 39 | . 2 . 1 . . . . . . 3 . . . . 3 5 . . 16 . 7 . 1 . . 1 . Part Schematic 4 | . . . . . . . . . . . . . . . . 4 . . . . . . . . . . . Robot Analysis 6 | . 2 . . . . . . . . . . . . . . 4 . . . . . . . . . . . Prototype ID Bank 4 | . . . . . . . . . . . . . . . . 4 . . . . . . . . . . . Open Door 17 | . . 1 . . . 3 . . 7 1 . . . . 2 . . . 1 . 1 . . 1 . . . Level Access Points 2 | . . . . . . . . . . . . . . . . . . 1 . . . . 1 . . . . Branch Access Points 4 | . . . . . 1 . . . . . . . 1 . . . . 1 . . . . 1 . . . . Emergency Access Points 1 | . . . . . . 1 . . . . . . . . . . . . . . . . . . . . . Terminal Index 5 | . . . . . 1 1 . . 1 . . 1 . . . . . 1 . . . . . . . . . Alert Level 7 | . 1 . . . . . . . . . . 1 1 . . . . . . . . . 2 . 1 1 . Unreport Threat 9 | . . . . . . 2 . . 3 . . . 2 . . . . . . . . . . . 1 1 . Locate Traps 1 | . . . . . . . . . . . . . . . . . . . . . . . . . . 1 . Disarm Traps 2 | . . . . . . 2 . . . . . . . . . . . . . . . . . . . . . Patrol Status 1 | . . . . . . . . . . . . . . . . . . . . . . . 1 . . . . Hauler Manifests 4 | . . . . . . 1 . . . . . . 1 . . . . . . . . . . 1 . 1 . Registered Components 1 | . . . . . . 1 . . . . . . . . . . . . . . . . . . . . . Zone Layout 2 | . . . . . . 1 . . . . . . . . . . . 1 . . . . . . . . . Protovariant Controls 2 | . . . . . . . . . . . . . . . . . . . . . . . . . . 2 . Fabricator Hacks . | . . . . . . . . . . . . . . . . . . . . . . . . . . . . Repair Station Hacks 4 | . . . . . . . . . . . . . . . . . . 3 . . . . . 1 . . . Scan Component 3 | . . . . . . . . . . . . . . . . . . 2 . . . . . 1 . . . Repair 1 | . . . . . . . . . . . . . . . . . . 1 . . . . . . . . . Recycling Unit Hacks 1 | . . . . . . . . . 1 . . . . . . . . . . . . . . . . . . Retrieve Components 1 | . . . . . . . . . 1 . . . . . . . . . . . . . . . . . . Scanalyzer 9 | . . . . . . . . . . . . . . . . . . . . . . . . 9 . . . Insert Component 8 | . . . . . . . . . . . . . . . . . . . . . . . . 8 . . . Analyze 1 | . . . . . . . . . . . . . . . . . . . . . . . . 1 . . . Garrison Access Hacks 3 | . . . . . . . . 1 . . . . 1 . . . . . . . . . . . . 1 . Seal Access 3 | . . . . . . . . 1 . . . . 1 . . . . . . . . . . . . 1 . Unauthorized Hacks 23 | . 2 . . . . 3 . 3 3 . . . 2 . . . . 2 . . . . 3 3 . 2 . Terminals 21 | . . . . . . 3 . 3 3 . . . 2 . . . . 2 . . . . 3 3 . 2 . Track 5 | . . . . . . 1 . . 1 . . . 1 . . . . 1 . . . . . 1 . . . Botnet 8 | . . . . . . 1 . 2 1 . . . . . . . . . . . . . 2 1 . 1 . Disrupt 1 | . . . . . . . . . 1 . . . . . . . . . . . . . . . . . . Operators 7 | . . . . . . 1 . 1 . . . . 1 . . . . 1 . . . . 1 1 . 1 . Fabricators . | . . . . . . . . . . . . . . . . . . . . . . . . . . . . Repair Stations . | . . . . . . . . . . . . . . . . . . . . . . . . . . . . Recycling Units 2 | . 2 . . . . . . . . . . . . . . . . . . . . . . . . . . Tunnel 2 | . 2 . . . . . . . . . . . . . . . . . . . . . . . . . . Scanalyzers . | . . . . . . . . . . . . . . . . . . . . . . . . . . . . Garrison Access . | . . . . . . . . . . . . . . . . . . . . . . . . . . . . Data Cores Recovered 1 | . . . . . . . . . 1 . . . . . . . . . . . . . . . . . . Used 1 | . . . . . . . . . 1 . . . . . . . . . . . . . . . . . . Hacking Detections 38 | . 4 . . . 1 5 1 2 7 2 . 1 4 . . . . 2 . . . . 2 4 1 2 . Full Trace Events 3 | . . . . . . . 1 . . . . . . . . . . 1 . . . . . 1 . . . Feedback Events 1 | . . . . . . . . . . . . . . . . . . . . . . . . 1 . . . Corruption 1 | . . . . . . . . . . . . . . . . . . . . . . . . 1 . . . Feedback Blocked . | . . . . . . . . . . . . . . . . . . . . . . . . . . . . Robot Schematics Acquired . | . . . . . . . . . . . . . . . . . . . . . . . . . . . . Robots Built . | . . . . . . . . . . . . . . . . . . . . . . . . . . . . Matter . | . . . . . . . . . . . . . . . . . . . . . . . . . . . . Time . | . . . . . . . . . . . . . . . . . . . . . . . . . . . . Total Robot Build Rating . | . . . . . . . . . . . . . . . . . . . . . . . . . . . . Part Schematics Acquired 5 | . . . . . . . . . . . . . . . . 4 . . . . . . . 1 . . . Parts Built . | . . . . . . . . . . . . . . . . . . . . . . . . . . . . Matter . | . . . . . . . . . . . . . . . . . . . . . . . . . . . . Time . | . . . . . . . . . . . . . . . . . . . . . . . . . . . . Total Part Build Rating . | . . . . . . . . . . . . . . . . . . . . . . . . . . . . Parts Repaired 1 | . . . . . . . . . . . . . . . . . . 1 . . . . . . . . . Time 28 | . . . . . . . . . . . . . . . . . . 28 . . . . . . . . . Parts Recycled . | . . . . . . . . . . . . . . . . . . . . . . . . . . . . Recycled Matter . | . . . . . . . . . . . . . . . . . . . . . . . . . . . . Retrieved Matter . | . . . . . . . . . . . . . . . . . . . . . . . . . . . . Retrieved Components 9 | . . . . . . . . . 9 . . . . . . . . . . . . . . . . . . Parts Scanalyzed 1 | . . . . . . . . . . . . . . . . . . . . . . . . 1 . . . Part Schematics Acquired 1 | . . . . . . . . . . . . . . . . . . . . . . . . 1 . . . Parts Damaged . | . . . . . . . . . . . . . . . . . . . . . . . . . . . . Bothacking | -11 -10 -10 -10 -9 -8 -8 -7 -6 -6 -6 -6 -6 -5 -5 -5 -5 -4 -4 -4 -4 -4 -3 -3 -3 -2 -2 -2 ------------ Run | Scr Mat Min Exi Min Mat Sto Fac Fac Ext Cet Arc Hub Fac Upp Upp Zhi Pro Fac Upp Upp War Pro Res Qua Res Tes Sec Used RIF Installer . | . . . . . . . . . . . . . . . . . . . . . . . . . . . . Robots Hacked . | . . . . . . . . . . . . . . . . . . . . . . . . . . . . Non-combat . | . . . . . . . . . . . . . . . . . . . . . . . . . . . . Combat . | . . . . . . . . . . . . . . . . . . . . . . . . . . . . Robot Hacks Applied . | . . . . . . . . . . . . . . . . . . . . . . . . . . . . Relay Couplers Released 5 | . . . . . . . . . . . . . 4 . . . . . . . . . . . . 1 . Machine Destruction 1 | . . . . . . . . . . . . . . . . . . . . . . . . . . 1 . Programmers 4 | . . . . . . . . . . . . . 4 . . . . . . . . . . . . . . Robots Rewired 15 | . . . . . . . . . 15 . . . . . . . . . . . . . . . . . . Allies Hacked . | . . . . . . . . . . . . . . . . . . . . . . . . . . . . Hacks Repelled . | . . . . . . . . . . . . . . . . . . . . . . . . . . . . Allies | -11 -10 -10 -10 -9 -8 -8 -7 -6 -6 -6 -6 -6 -5 -5 -5 -5 -4 -4 -4 -4 -4 -3 -3 -3 -2 -2 -2 -------- Run | Scr Mat Min Exi Min Mat Sto Fac Fac Ext Cet Arc Hub Fac Upp Upp Zhi Pro Fac Upp Upp War Pro Res Qua Res Tes Sec Total Allies 40 | . . 2 . . . 2 . . 27 4 . . . . 3 . . . 2 . . . . . . . . Largest Group 10 | . . 2 2 . . 2 2 . 10 10 6 1 1 . 3 . . . 2 . . . . . . . . Highest-Rated Group 577 | . . 39 39 . . 62 62 . 430 577 515 94 94 . 60 . . . 84 . . . . . . . . Highest-Rated Ally 156 | . . 31 31 . . 31 31 . 156 156 113 94 94 . 20 . . . 46 . . . . . . . . Total Orders . | . . . . . . . . . . . . . . . . . . . . . . . . . . . . Ally Attacks 347 | . . . . . . 56 12 . 144 83 19 16 7 . 7 . . . 3 . . . . . . . . Total Damage 7369 | . . . . . . 861 209 . 2652 1960 738 611 140 . 164 . . . 34 . . . . . . . . Kills 53 | . . . . . . 15 2 . 13 12 2 7 1 . 1 . . . . . . . . . . . . Allies Corrupted 1 | . . . . . . . . . 1 . . . . . . . . . . . . . . . . . . Allies Melted . | . . . . . . . . . . . . . . . . . . . . . . . . . . . . Intel | -11 -10 -10 -10 -9 -8 -8 -7 -6 -6 -6 -6 -6 -5 -5 -5 -5 -4 -4 -4 -4 -4 -3 -3 -3 -2 -2 -2 ------- Run | Scr Mat Min Exi Min Mat Sto Fac Fac Ext Cet Arc Hub Fac Upp Upp Zhi Pro Fac Upp Upp War Pro Res Qua Res Tes Sec Robot Analysis Total 6 | . 2 . . . . . . . . . . . . . . 4 . . . . . . . . . . . Derelict Logs Recovered 5 | . . 1 . . . . . . . . . . . 1 1 . . . 1 1 . . . . . . . Drone Launches . | . . . . . . . . . . . . . . . . . . . . . . . . . . . . Drone Recoveries . | . . . . . . . . . . . . . . . . . . . . . . . . . . . . Exploration | -11 -10 -10 -10 -9 -8 -8 -7 -6 -6 -6 -6 -6 -5 -5 -5 -5 -4 -4 -4 -4 -4 -3 -3 -3 -2 -2 -2 ------------- Run | Scr Mat Min Exi Min Mat Sto Fac Fac Ext Cet Arc Hub Fac Upp Upp Zhi Pro Fac Upp Upp War Pro Res Qua Res Tes Sec Turns Passed 18430 | 70 1159 321 399 112 325 810 345 458 1532 353 141 297 1507 824 1154 369 815 778 855 359 672 552 643 1601 236 1129 614 Spaces Moved 9114 | 69 549 175 219 63 142 339 171 247 707 178 56 140 647 378 605 186 399 344 545 295 470 340 292 659 104 488 307 Core 139 | 44 . . . . . . . . . . . . . . . . . . . . . . . . . 20 75 Treads 6555 | 7 405 175 219 63 142 339 171 247 707 178 56 140 647 378 605 186 399 278 5 . . . 123 574 60 429 22 Legs 1733 | . . . . . . . . . . . . . . . . . . . 292 295 470 340 169 84 44 39 . Wheels 687 | 18 144 . . . . . . . . . . . . . . . . 66 248 . . . . 1 . . 210 Hover . | . . . . . . . . . . . . . . . . . . . . . . . . . . . . Flight . | . . . . . . . . . . . . . . . . . . . . . . . . . . . . Fastest Speed 50 | 50 100 160 180 180 200 180 180 180 180 160 160 160 160 160 160 160 160 120 120 120 110 110 140 150 115 50 50 Average Speed 157 | 81 156 174 180 180 200 199 180 180 180 163 160 160 160 168 167 160 178 153 121 120 116 140 154 161 156 165 97 Slowest Speed 270 | 160 180 180 180 180 200 200 180 180 180 180 160 160 180 180 180 180 180 160 210 120 120 143 200 270 260 240 170 Overloaded Moves . | . . . . . . . . . . . . . . . . . . . . . . . . . . . . Propulsion Burnouts . | . . . . . . . . . . . . . . . . . . . . . . . . . . . . Robots Hopped . | . . . . . . . . . . . . . . . . . . . . . . . . . . . . Cave-ins Triggered . | . . . . . . . . . . . . . . . . . . . . . . . . . . . . Teleports 1 | . . . . . . . . . . . . . . . . . . . . . . . . . . . 1 Exploration Rate (%) 43 | 4 88 43 52 21 19 54 6 10 86 73 72 23 27 51 69 61 55 9 70 60 77 54 9 57 4 50 12 Regions Visited 27 Branch Regions 19 Pre-discovered Areas 9 | . 2 1 1 . . . . . . . . . . 1 . 3 . . 1 . . . . . . . . Known Exits Taken 9 | . . . . . 1 . . . . . . . 1 . . . . 1 1 1 . 1 1 1 1 . . Unknown Exits Taken 18 | 1 1 1 1 1 . 1 1 1 1 1 1 1 . 1 1 1 1 . . . 1 . . . . 1 . Scrap Searched 14 | . . 2 . 1 . . . . . . . . . 2 3 . . . 3 2 . 1 . . . . . Spaces Dug 103 | . . 15 . . . 14 5 . . . . . 3 21 6 . 3 . 6 . . . 1 17 . 11 1 Terrain Destroyed 890 | . 39 22 . . 10 81 13 2 7 . 6 336 121 21 24 . 15 6 11 . 1 3 9 59 5 94 5 Melee 5 | . . . . . . . . . . . . . 3 . . . . . . . . . 1 . . . 1 Projectile 114 | . . . . . 10 6 2 2 7 . 6 11 16 . 2 . 5 2 11 . 1 3 8 17 . 5 . AOE 771 | . 39 22 . . . 75 11 . . . . 325 102 21 22 . 10 4 . . . . . 42 5 89 4 Terrain Rammed 1 | . . . . . . . . . . . . . . . . . . . . . . . . . . . 1 Walls Destroyed . | . . . . . . . . . . . . . . . . . . . . . . . . . . . . Machines Disabled . | . . . . . . . . . . . . . . . . . . . . . . . . . . . . Actions | -11 -10 -10 -10 -9 -8 -8 -7 -6 -6 -6 -6 -6 -5 -5 -5 -5 -4 -4 -4 -4 -4 -3 -3 -3 -2 -2 -2 --------- Run | Scr Mat Min Exi Min Mat Sto Fac Fac Ext Cet Arc Hub Fac Upp Upp Zhi Pro Fac Upp Upp War Pro Res Qua Res Tes Sec Total 11543 | 79 701 189 224 62 168 423 193 257 896 222 79 170 855 524 679 236 458 514 653 299 574 375 392 975 148 712 486 Wait 544 | . 20 4 . . 2 5 1 . 38 18 . 2 17 110 6 . 14 89 10 . 63 1 15 68 2 42 17 Move 9088 | 68 548 174 218 62 141 338 170 246 706 177 55 139 646 377 604 185 398 343 544 294 469 339 291 658 104 487 307 Hop . | . . . . . . . . . . . . . . . . . . . . . . . . . . . . Pick Up 188 | 4 20 1 2 . 7 11 4 3 6 4 2 2 11 3 8 3 4 12 9 . 5 6 10 22 1 16 12 Fast Attach 168 | 6 2 1 . . 2 8 . . 5 3 1 . 16 2 8 10 2 10 16 2 5 1 6 14 8 12 28 Attach 166 | . 7 1 . . 2 5 5 4 . 1 2 . 13 2 10 2 7 7 4 . 3 3 8 29 6 28 17 Detach 44 | . . . . . . 2 . . . . . . 3 1 . 5 1 . . . 2 . 1 15 . 13 1 Swap 84 | 1 5 1 2 . . 5 . . 3 . 2 2 10 7 3 . 6 1 11 1 3 4 5 6 1 5 . Drop 208 | . 5 3 2 . 5 16 3 2 8 9 4 4 12 1 4 11 . 12 15 2 10 4 11 22 4 32 7 Fire 845 | . 90 3 . . 8 29 10 2 32 10 13 20 120 21 36 20 26 40 44 . 11 17 41 120 19 75 38 Melee 74 | . . . . . . 2 . . . . . . 3 . . . . . . . . . 1 17 . 2 49 Ram 3 | . . . . . . . . . . . . . . . . . . . . . . . . . . . 3 Kick 15 | . . . . . . . . . . . . . . . . . . . . . 3 . 2 1 3 . 6 Crush 19 | . 4 1 . . 1 2 . . 1 . . 1 4 . . . . . . . . . 1 3 . . 1 Escape Stasis 8 | . . . . . . . . . 8 . . . . . . . . . . . . . . . . . . Rewire 89 | . . . . . . . . . 89 . . . . . . . . . . . . . . . . . . Trap . | . . . . . . . . . . . . . . . . . . . . . . . . . . . . Miscellaneous . | . . . . . . . . . . . . . . . . . . . . . . . . . . . . Route ------- -11/Scrapyard -10/Materials (discovered 4 exits: [*Mat x3] / *Min) -10/Mines (discovered 2 exits: [*Mat] / *Exi) -10/Exiles -9/Mines -8/Materials (discovered 3 exits: *Fac / *Sto x2) -8/Storage -7/Factory -6/Factory -6/Extension (discovered 2 exits: *Fac / *Cet) -6/Cetus -6/Archives -6/Hub_04(d) -5/Factory (discovered 3 exits: *Fac / *Upp x2) -5/Upper Caves -5/Upper Caves (discovered 2 exits: *Fac / *Zhi) -5/Zhirov -4/Proximity Caves -4/Factory (discovered 7 exits: Res x4 / *Upp x2 / Arm) -4/Upper Caves -4/Upper Caves (discovered 2 exits: Res / *War) -4/Warlord -3/Proximity Caves -3/Research (discovered 5 exits: Res x3 / *Qua x2) -3/Quarantine -2/Research -2/Testing -2/Section 7 History --------- Turn | Location | Event 6 | -11/Scrapyard | Discovered new exit (range 13) 71 | -11/Scrapyard | Entered Materials 194 | -10/Materials | Discovered new exit (range 15) 300 | -10/Materials | Build established: Mutant 374 | -10/Materials | Lost 3 parts (1p1n1w) 396 | -10/Materials | Discovered new exit (range 15) 549 | -10/Materials | Discovered new exit (range 9) 636 | -10/Materials | Discovered new exit (range 9) 1230 | -10/Materials | Entered Mines 1313 | -10/Mines | Met a Derelict shopkeep closing up shop 1511 | -10/Mines | Learned location of Zion (-6) 1517 | -10/Mines | Discovered new exit (range 13) 1538 | -10/Mines | Deemed a non-threat by the Exiles lab entrance 1538 | -10/Mines | Discovered new exit (range 5) 1551 | -10/Mines | Entered Exiles 1551 | -10/Exiles | Accompanied by 2 allies 1581 | -10/Exiles | Led the pair of lost Derelicts to a safe place 1600 | -10/Exiles | Met 8R-AWN 1625 | -10/Exiles | Met EX-HEX 1733 | -10/Exiles | Met EX-DEC 1934 | -10/Exiles | Discovered new exit (range 10) 1950 | -10/Exiles | Entered Mines 1992 | -9/Mines | Build established: Hauler-Mutant 2015 | -9/Mines | Discovered new exit (range 10) 2062 | -9/Mines | Entered Materials 2062 | -8/Materials | Evolved 4 slots: Utility x3, Weapon x1 2237 | -8/Materials | Discovered new exit (range 16) 2308 | -8/Materials | Discovered new exit (range 11) 2338 | -8/Materials | Identified exit to Storage 2387 | -8/Materials | Entered Storage 2866 | -8/Storage | Found Prototype Processor 2866 | -8/Storage | Identified Exp. Targeting Computer 2873 | -8/Storage | Found Exp. Targeting Computer 2878 | -8/Storage | Found Exp. Targeting Computer 2911 | -8/Storage | Met a pair of Derelict thieves 3016 | -8/Storage | Discovered new exit (range 16) 3197 | -8/Storage | Entered Factory 3197 | -7/Factory | Accompanied by 2 allies 3197 | -7/Factory | Evolved 2 slots: Propulsion x2 3324 | -7/Factory | Garrison activated, responded to threat 3535 | -7/Factory | Discovered new exit (range 5) 3542 | -7/Factory | Entered another Factory area 3542 | -6/Factory | Evolved 2 slots: Utility x2 3691 | -6/Factory | Build established: Hauler-Bomber 3978 | -6/Factory | Discovered new exit (range 12) 4000 | -6/Factory | Entered Extension 4188 | -6/Extension | Rescued a captive Derelict 4307 | -6/Extension | Rescued a captive Derelict 4424 | -6/Extension | Rescued a captive Derelict 4425 | -6/Extension | Rescued a captive Derelict 4646 | -6/Extension | Build established: Scavenger-Gunner 5019 | -6/Extension | Spotted B-75 Beast 5027 | -6/Extension | Allies destroyed B-75 Beast 5042 | -6/Extension | Spotted B-75 Beast 5059 | -6/Extension | Allies destroyed B-75 Beast 5172 | -6/Extension | Rescued a captive Derelict 5316 | -6/Extension | Rescued a captive Derelict 5317 | -6/Extension | Rescued a captive Derelict 5421 | -6/Extension | Rescued A7 5433 | -6/Extension | Allied Derelicts emerged from ambush trap array 5443 | -6/Extension | Rescued a captive Derelict 5499 | -6/Extension | Discovered new exit (range 10) 5501 | -6/Extension | Discovered new exit (range 6) 5532 | -6/Extension | Entered Cetus 5532 | -6/Cetus | Accompanied by 10 allies (A7) 5537 | -6/Cetus | Acquired a Cetus Manufacturing Module code from A7 5556 | -6/Cetus | Spotted Cetus Guard 5556 | -6/Cetus | Spotted Cetus Guard 5560 | -6/Cetus | Spotted Cetus Guard 5572 | -6/Cetus | Spotted Cetus Guard 5573 | -6/Cetus | Allies destroyed Cetus Guard 5574 | -6/Cetus | Destroyed Cetus Guard 5580 | -6/Cetus | Allies destroyed Cetus Guard 5588 | -6/Cetus | Allies destroyed Cetus Guard 5691 | -6/Cetus | Started Cetus Manufacturing Module 5702 | -6/Cetus | Escorted A7 to Cetus Mainframe 5716 | -6/Cetus | Manufactured an Enhanced Grunt 5741 | -6/Cetus | Manufactured an Enhanced Grunt 5766 | -6/Cetus | Manufactured an Enhanced Grunt 5791 | -6/Cetus | Manufactured an Enhanced Grunt 5814 | -6/Cetus | Cetus Manufacturing Module disabled 5850 | -6/Cetus | Discovered new exit (range 15) 5885 | -6/Cetus | Entered Archives 5885 | -6/Archives | Accompanied by 6 allies (A7) 5890 | -6/Archives | Received a hacking code to weaken MAIN.C 5985 | -6/Archives | Discovered new exit (range 16) 6026 | -6/Archives | Entered Hub_04(d) 6026 | -6/Hub_04(d) | Accompanied by 1 ally 6258 | -6/Hub_04(d) | Discovered new exit (range 6) 6309 | -6/Hub_04(d) | Network Hub disabled 6312 | -6/Hub_04(d) | Network Hub disabled 6323 | -6/Hub_04(d) | Entered Factory 6323 | -5/Factory | Accompanied by 1 ally 6323 | -5/Factory | Evolved 2 slots: Power x1, Utility x1 6816 | -5/Factory | Lost 3 parts (1n2u) 6837 | -5/Factory | Build established: Scavenger-Tank 6850 | -5/Factory | Garrison activated, responded to threat 6942 | -5/Factory | Identified exit to Upper Caves 7102 | -5/Factory | Discovered new exit (range 12) 7301 | -5/Factory | System corruption reached 10% 7349 | -5/Factory | Lost 3 parts (1n1u1w) 7523 | -5/Factory | First assault squad dispatched 7523 | -5/Factory | Destroyed 7 combat bots 7636 | -5/Factory | Spotted B-75 Beast 7668 | -5/Factory | Destroyed B-75 Beast 7830 | -5/Factory | Entered Upper Caves 8235 | -5/Upper Caves | Attracted the attention of an 0b10 checkpoint 8266 | -5/Upper Caves | Learned location of Armory (-4) 8347 | -5/Upper Caves | Discovered new exit (range 6) 8654 | -5/Upper Caves | Entered another Upper Caves area 8728 | -5/Upper Caves | Lost 3 parts (1p2u) 8799 | -5/Upper Caves | Discovered new exit (range 15) 8927 | -5/Upper Caves | A Commander dispatched an escort 8930 | -5/Upper Caves | Learned Research emergency access door positions 8930 | -5/Upper Caves | Learned Extension stockpile data 8930 | -5/Upper Caves | Learned Armory terminal intel 8962 | -5/Upper Caves | Build established: Scavenger-Gunner 8995 | -5/Upper Caves | Attracted the attention of an 0b10 checkpoint 9061 | -5/Upper Caves | Lost 8 parts (3n1u4w) 9521 | -5/Upper Caves | Build established: Scavenger-Skirmisher 9657 | -5/Upper Caves | Discovered new exit (range 23) 9808 | -5/Upper Caves | Entered Zhirov 9810 | -5/Zhirov | Discovered new exit (range 3) 9842 | -5/Zhirov | Met Zhirov 9881 | -5/Zhirov | Found Alien Artifact 9881 | -5/Zhirov | Identified Integrated Dissipator 9881 | -5/Zhirov | Installed Integrated Dissipator, increased core heat dissipation (+20) 10061 | -5/Zhirov | Found Alien Artifact 10101 | -5/Zhirov | Learned location of Quarantine (-3) 10101 | -5/Zhirov | Learned location of Testing (-2) 10101 | -5/Zhirov | Learned location of Command (-1) 10111 | -5/Zhirov | Zhirov requested help retrieving the SGEMP Prototype 10119 | -5/Zhirov | Build established: Hauler-Mutant 10177 | -5/Zhirov | Entered Proximity Caves 10227 | -4/Proximity Caves | Attracted the attention of an 0b10 checkpoint 10282 | -4/Proximity Caves | Lost 4 parts (2p1u1w) 10781 | -4/Proximity Caves | Discovered new exit (range 9) 10992 | -4/Proximity Caves | Entered Factory 10992 | -4/Factory | Evolved 2 slots: Propulsion x2 11137 | -4/Factory | Repaired Hvy. Treads 11158 | -4/Factory | Build established: Scavenger-Skirmisher 11280 | -4/Factory | Identified exit to Upper Caves 11280 | -4/Factory | Identified exit to Armory 11280 | -4/Factory | Identified exit to Research 11770 | -4/Factory | Entered Upper Caves 11916 | -4/Upper Caves | Learned Research emergency access door positions 12155 | -4/Upper Caves | Lost 3 parts (2n1u) 12239 | -4/Upper Caves | Attracted the attention of an 0b10 checkpoint 12296 | -4/Upper Caves | A Commander dispatched an escort 12310 | -4/Upper Caves | Learned location of 1 exit from Factory 12310 | -4/Upper Caves | Learned Extension trap positions 12310 | -4/Upper Caves | Learned Research security intel 12310 | -4/Upper Caves | Learned Research terminal intel 12310 | -4/Upper Caves | Learned Research garrison access intel 12403 | -4/Upper Caves | Attracted the attention of an 0b10 base 12452 | -4/Upper Caves | Lost 3 parts (1u2w) 12468 | -4/Upper Caves | Identified exit to Upper Caves 12468 | -4/Upper Caves | Learned location of 1 exit from Upper Caves 12468 | -4/Upper Caves | Learned location of 1 exit from Factory 12468 | -4/Upper Caves | Learned Research emergency access door positions 12468 | -4/Upper Caves | Learned Factory security intel 12625 | -4/Upper Caves | Entered another Upper Caves area 12627 | -4/Upper Caves | Identified exit to Warlord 12984 | -4/Upper Caves | Entered Warlord 13025 | -4/Warlord | System corruption cleaned by Quarantine Array 13217 | -4/Warlord | Learned Research trap positions 13217 | -4/Warlord | Learned Research stockpile data 13219 | -4/Warlord | Learned 4 Quarantine zone layouts 13219 | -4/Warlord | Learned 4 Quarantine zone layouts 13220 | -4/Warlord | Learned Armory security intel 13220 | -4/Warlord | Learned Armory fabricator intel 13220 | -4/Warlord | Learned Armory repair station intel 13351 | -4/Warlord | Met Warlord 13376 | -4/Warlord | Warlord's base attacked by MAIN.C 13379 | -4/Warlord | Found Prototype Device 13379 | -4/Warlord | Identified Exp. Cloaking Device 13388 | -4/Warlord | Found Prototype Reactor 13396 | -4/Warlord | Found Prototype Hackware 13524 | -4/Warlord | Opened side exit 13592 | -4/Warlord | Discovered new exit (range 15) 13640 | -4/Warlord | Build established: Scavenger-Mutant 13656 | -4/Warlord | Entered Proximity Caves 13717 | -3/Proximity Caves | Identified Vortex Chain Reactor 13943 | -3/Proximity Caves | Build established: Scavenger-Tank 14141 | -3/Proximity Caves | Discovered exit to Research (range 14) 14208 | -3/Proximity Caves | Entered Research 14208 | -3/Research | Evolved 2 slots: Utility x2 14209 | -3/Research | Loaded intel: 55 trap records 14213 | -3/Research | Loaded intel: 19 terminal locations 14214 | -3/Research | Loaded intel: 4 garrison access locations 14221 | -3/Research | Identified Ghost Barrier 14457 | -3/Research | Identified exit to Quarantine 14498 | -3/Research | Spotted B-86 Titan 14564 | -3/Research | Destroyed B-86 Titan 14605 | -3/Research | Lost 4 parts (2n2w) 14633 | -3/Research | Found Prototype Launcher 14636 | -3/Research | Found Prototype Launcher 14637 | -3/Research | Identified Tesla Bomb Launcher (x2) 14723 | -3/Research | Identified exit to Research 14851 | -3/Research | Entered Quarantine 14866 | -3/Quarantine | Found Alien Artifact 14945 | -3/Quarantine | Spotted Alpha 7 14961 | -3/Quarantine | System corruption reached 10% 14973 | -3/Quarantine | Destroyed Alpha 7 15004 | -3/Quarantine | Found Prototype Ballistic Gun 15006 | -3/Quarantine | Found Prototype Processor 15024 | -3/Quarantine | Found Alien Launcher 15152 | -3/Quarantine | Found Alien Artifact 15200 | -3/Quarantine | Identified Multirail 15268 | -3/Quarantine | Destroyed 7 combat bots 15369 | -3/Quarantine | Found Alien Artifact 15497 | -3/Quarantine | Build established: Scavenger-Gunner 15657 | -3/Quarantine | Lost 10 parts (2p3n5w) 15716 | -3/Quarantine | Discovered exit to Research (range 14) 15767 | -3/Quarantine | Identified Transdimensional Reconstructor 15767 | -3/Quarantine | Identified Core Reset Matrix 15767 | -3/Quarantine | Identified Subatomic Replicator 15767 | -3/Quarantine | Identified Matter Drive 15767 | -3/Quarantine | Identified Sigix Terminator 15904 | -3/Quarantine | Build established: Scavenger-Mutant 16062 | -3/Quarantine | Found Prototype Device 16062 | -3/Quarantine | Identified Exp. Thermal Defense Suite 16101 | -3/Quarantine | First assault squad dispatched 16366 | -3/Quarantine | Core integrity fell below 50% 16442 | -3/Quarantine | Build established: Hauler-Mutant 16452 | -3/Quarantine | Entered Research 16452 | -2/Research | Warlord forces began assault on 0b10 16452 | -2/Research | Evolved 2 slots: Utility x1, Weapon x1 16452 | -2/Research | Identified Exp. Target Analyzer 16453 | -2/Research | Identified exit to Testing 16562 | -2/Research | Research machine network offline 16597 | -2/Research | Destroyed 10 combat bots 16602 | -2/Research | Lost 4 parts (1p1n2w) 16688 | -2/Research | Entered Testing 16959 | -2/Testing | Protovariant out of control (PY-ILMGBN4Z9J) 16959 | -2/Testing | Unleashed a protovariant (PY-ILMGBN4Z9J) 16977 | -2/Testing | Garrison activated, responded to threat 17132 | -2/Testing | Found Prototype Energy Gun 17132 | -2/Testing | Identified Hyp. EM Gauss Rifle 17169 | -2/Testing | Found Prototype Energy Cannon 17169 | -2/Testing | Identified Imp. Potential Cannon 17173 | -2/Testing | Found Prototype Energy Cannon 17173 | -2/Testing | Identified Potential Cannon 17475 | -2/Testing | First assault squad dispatched 17497 | -2/Testing | System corruption reached 10% 17561 | -2/Testing | Destroyed 17 combat bots 17579 | -2/Testing | Found Prototype Launcher 17663 | -2/Testing | Scanned by Researcher 17687 | -2/Testing | Spotted Fortress 17787 | -2/Testing | Discovered new exit (range 22) 17798 | -2/Testing | Identified Containment Facilitator 17817 | -2/Testing | Entered Section 7 17825 | -2/Section 7 | Spotted S7 Guard 17835 | -2/Section 7 | Lost 9 parts (1p3n4u1w) 17838 | -2/Section 7 | Core integrity fell below 50% 17850 | -2/Section 7 | Warped through subspace 18067 | -2/Section 7 | First assault squad dispatched 18150 | -2/Section 7 | Lost 3 parts (1n1u1w) 18152 | -2/Section 7 | Destroyed 8 combat bots 18200 | -2/Section 7 | Scanned by Researcher 18202 | -2/Section 7 | System corruption reached 30% 18267 | -2/Section 7 | Destroyed S7 Guard 18295 | -2/Section 7 | Used Subatomic Replicator to replicate Alien Artifact 18296 | -2/Section 7 | Found Alien Artifact 18296 | -2/Section 7 | Identified Core Regenerator 18296 | -2/Section 7 | Used Core Regenerator, restored core integrity (+362) 18299 | -2/Section 7 | Used Core Regenerator, restored core integrity (+362) 18369 | -2/Section 7 | Intercept squad dispatched 18373 | -2/Section 7 | Lost 10 parts (1p3n2u4w) 18379 | -2/Section 7 | Spotted Tracker 18383 | -2/Section 7 | Spotted Tracker 18402 | -2/Section 7 | Spotted Combat Programmer 18406 | -2/Section 7 | Spotted Combat Programmer 18430 | -2/Section 7 | Core integrity fell below 20% 18431 | -2/Section 7 | Destroyed by H-88 Terminator with KE Penetrator Last Messages --------------- 18428_ Slug penetrates Combat Programmer. 18428_ Slug penetrates Suspension Chamber. 18428_ Slug penetrates Tracker. 18428_ Penetrated by EMDS Slug. 18429_ Penetrated by Slug. 18429_ Slug penetrates Suspension Chamber. 18429_ Penetrated by Slug. 18429_ Lrg. Storage Unit destroyed. 18429_ Slug penetrates Wall. 18429_ Slammed into H-88 Terminator. 18430_ H-88 Terminator knocked back. 18430_ Penetrated by EMDS Slug. 18431_ Combat Programmer heat damages Prototype Device. 18431_ C-30 ARC bursts open, deploying its payload. 18431_ G-73 Enforcer unfolds itself. 18431_ E-15 Imp unfolds itself. 18431_ Slug penetrates Wall. 18431_ Penetrated by Slug. 18431_ Slug penetrates Earth. 18431_ Penetrated by Slug. Map ----- +----------------------------------------------------+ | ?????????????????????????????????????????????????? | | ?????????????????????????????????????????????????? | | ???????????????????????????????????###???###?????? | | ???????????????????????????????????? ??? ??????? | | ??????????????????????????????????? ?????? | | ??????????????????????????????????""" """ """ ???? | | ???????????????????????????????? """ """ """ ??? | | ???????????????????????????????# """ """ """ ??? | | ???????????????????????????????# ???? | | ???????????????????????????????? """ ??? | | ?????????????????????????????????"" "" """ ???? | | ???????????????????????????????????T"" ""?????? | | ????????????????????????????????????? ???????? | | ?????????????????????????????##########/########## | | ?????????????????????????????# | | ?????????????????????????????# | | ?????????????????????????????# | | ?????????????????????????????# | | ?????????????????????????????# ################ | | ?????????????????????????????# #?? #?????? | | ???????????????????#########?# #? """ ??????? | | ???????????????????#"""" %h#?# #? " " #?????? | | ???????????????????# " " %%#?# # """ #?????? | | ???????????????????# %"m= ### # #?????? | | ???????????????????# ="p"s;## + * """ #?????? | | ???????????????##??# [!Q=@h#?# # " " #?????? | | ??????#########"#??# %%Qp==;## # """ #?????? | | ??????#!] ########/#%;;## #? #?????? | | ??????#!] # ]% ggp #?########?????? | | ??????#] ! # gg #??????????????? | | ??????# # ^e #??????????????? | | ??????# + ^ #??????????????? | | ??????# """"" # #"#+#################????????? | | ??????# """"" # # #?? ?? #????? | | ??????# """"" # # ""%#?? " " " #????? | | ####### ###### """|## """ """ """ #????? | | ############### "T%!## """" """" """" #????? | | " ## # ! # """%## """ """ """ #????? | | """ ## # # !""=## #????? | | """" ## #| !#==|%%## #????? | | """ ## =# # ""*!## #????? | | [ ########/# # "="*## #????? | | #####+###?# ! %/= # """*##########+########????? | | ??# #?#%% !#% # / | | ??# ### !%%= ####[ # | | ??# % *!% *# ! %########## | | ??# #####!=%% | | ??# #???# *% ###### % ############# """"T" | | ??#######???######????# #?????????????""???? | | ??????????????????????#########??????????????#???? | +----------------------------------------------------+ Best States ------------- Heat Dissipation 126 Coolant Potential 65 Energy Generation 55 Energy Capacity 1575 Matter Stores 300 Matter Capacity 300 Sight Range 23 Terrain Scan Range 24 Terrain Scan Density 210 Jamming Range 12 Cloak Strength 4 Additional Mass Support 9 EM Shielding 4 Armor Coverage 1200 Resistance: KI 20 Resistance: TH 30 Utility Shielding 33 Phase Shifting 10 Evasion (%) 50 Targeting Accuracy 12 Melee Accuracy 6 Target Analysis 12 Armor Integrity Analysis 50 Recoil Reduction 6 Particle Charging 30 Salvage Targeting 4 Offensive Hacking 24 Defensive Hacking 32 Item Schematics ----------------- Assault Drone Bay | -5/Zhirov | Free Exp. Heat Sink | -5/Zhirov | Free Exp. Optical Array | -5/Zhirov | Free Imp. Arc Thrower | -5/Zhirov | Free Imp. Energy Mantle | -3/Quarantine | Scanalyzed Robot Schematics ------------------ None Fabricated ------------ Nothing Alien Tech Used ----------------- Integrated Dissipator Transdimensional Reconstructor Subatomic Replicator Core Regenerator Achievements -------------- Main Advantage Challenges ------------ None Game ------ Seed ParticleThiefGreatsword Manual? 0 Play Time 02:31:38 Cumulative 437.7 hours Start 2021.06.07 @ 14:34:43 End 2021.06.07 @ 17:14:37 Sessions 1 Manual Loads 0 Difficulty Rogue Special Mode None Game No. 332 Rogue 325 Adventurer 0 Explorer 7 Win Type - Total 20 Types 8/2/9/1/0/0/0/0/0 Lore% 81 Gallery% 94 Achievement% 78 Wizard Run 0 Options --------- ASCII 0 Keyboard 0 Movement Numpad Keybinds 0 Fullscreen 1 Font 18/X11Bold Map View 76x50 Tactical HUD 1 Map Filters NONE Filters NONE Steam 1 RUN: 04d93f54-3b30-4f2a-adfd-80dc8a79640a